fUSD/lending_fUSD_20240301
["ID","MTS","AMOUNT","RATE_DAILY","PERIOD"]
[315955892,1709303439996,-520.49,0.00021917,2]
[315955894,1709303440005,-1979.77,0.00021917,2]
[315955896,1709303440015,-500.0,0.00021917,2]
[315955898,1709303440024,-1081.39,0.00021917,2]
[315955900,1709303440033,-500.0,0.00021917,2]
[315955902,1709303440043,-699.54,0.00021917,2]
[315955904,1709303440052,-500.0,0.00021917,2]
[315955906,1709303440062,-995.51,0.00021917,2]
[315955908,1709303440072,-500.0,0.00021917,2]
[315955910,1709303440081,-973.77,0.00021917,2]
[315955912,1709303440091,-536.88,0.00021917,2]
[315955914,1709303440100,-500.0,0.00021917,2]
[315955916,1709303440109,-500.0,0.00021917,2]
[315955918,1709303440118,-500.0,0.00021917,2]
[315955920,1709303440128,-753.35,0.00021917,2]
[315955922,1709303440137,-500.0,0.00021917,2]
[315955924,1709303440146,-500.0,0.00021917,2]
[315955926,1709303440155,-500.0,0.00021917,2]
[315955928,1709303440164,-500.0,0.00021917,2]
[315955930,1709303440173,-712.77,0.00021917,2]
[315955932,1709303440182,-1164.9,0.00021917,2]
[315955934,1709303440191,-1509.94,0.00021917,2]
[315955936,1709303440200,-1715.38,0.00021917,2]
[315955938,1709303440208,-500.0,0.00021917,2]
[315955940,1709303440218,-629.21,0.00021917,2]
[315955942,1709303440227,-500.0,0.00021917,2]
[315955944,1709303440237,-500.0,0.00021917,2]
[315955945,1709303440246,-786.2,0.00021917,2]
[315955946,1709303440257,-500.0,0.00021917,2]
[315955947,1709303440268,-500.0,0.00021917,2]
[315955948,1709303440278,-500.0,0.00021917,2]
[315955949,1709303440288,-677.39,0.00021917,2]
[315955950,1709303440298,-500.0,0.00021917,2]
[315955951,1709303440308,-701.2,0.00021917,2]
[315955952,1709303440321,-500.0,0.00021917,2]
[315955953,1709303440333,-6650.97,0.00021917,2]
[315955954,1709303440343,-4061.11,0.00021917,2]
[315955955,1709303440353,-500.0,0.00021917,2]
[315955956,1709303440363,-500.0,0.00021917,2]
[315955957,1709303440374,-1281.71,0.00021917,2]
[315955958,1709303440384,-500.0,0.00021917,2]
[315955959,1709303440394,-155.0,0.00021917,2]
[315955960,1709303440404,-500.0,0.00021917,2]
[315955961,1709303440413,-500.0,0.00021917,2]
[315955962,1709303440423,-500.0,0.00021917,2]
[315955963,1709303440432,-500.0,0.00021917,2]
[315955964,1709303440442,-1234.77,0.00021917,2]
[315955965,1709303440451,-513.73439069,0.00021917,2]
[315955966,1709303440461,-500.0,0.00021917,2]
[315955968,1709303440472,-500.0,0.00021917,2]
[315955970,1709303440482,-500.0,0.00021917,2]
[315955971,1709303440492,-500.0,0.00021917,2]
[315955972,1709303440502,-500.0,0.00021917,2]
[315955973,1709303440512,-724.46,0.00021917,2]
[315955974,1709303440522,-500.0,0.00021917,2]
[315955975,1709303440533,-508.41,0.00021917,2]
[315955976,1709303440544,-500.0,0.00021917,2]
[315955977,1709303440553,-555.65,0.00021917,2]
[315955978,1709303440567,-2245.59,0.00021917,2]
[315955979,1709303440577,-171.52714117,0.00021917,2]
[315955980,1709303440586,-500.0,0.00021917,2]
[315955981,1709303440596,-1093.82,0.00021917,2]
[315955982,1709303440609,-500.0,0.00021917,2]
[315955983,1709303440619,-500.0,0.00021917,2]
[315955984,1709303440628,-500.0,0.00021917,2]
[315955985,1709303440638,-500.0,0.00021917,2]
[315955986,1709303440647,-500.0,0.00021917,2]
[315955987,1709303440658,-500.0,0.00021917,2]
[315955988,1709303440668,-500.0,0.00021917,2]
[315955989,1709303440678,-500.0,0.00021917,2]
[315955990,1709303440687,-1925.43,0.00021917,2]
[315955991,1709303440697,-500.0,0.00021917,2]
[315955992,1709303440706,-16877.65,0.00021917,2]
[315955993,1709303440715,-500.0,0.00021917,2]
[315955994,1709303440725,-1273.62,0.00021917,2]
[315955995,1709303440734,-1235.51,0.00021917,2]
[315955996,1709303440744,-500.0,0.00021917,2]
[315955997,1709303440753,-500.0,0.00021917,2]
[315955998,1709303440762,-500.0,0.00021917,2]
[315955999,1709303440772,-500.0,0.00021917,2]
[315956000,1709303440781,-546.27,0.00021917,2]
[315956001,1709303440790,-500.0,0.00021917,2]
[315956002,1709303440799,-311.96867486,0.00021917,2]
[315956003,1709303440813,-500.0,0.00021917,2]
[315956004,1709303440825,-1178.09,0.00021917,2]
[315956005,1709303440834,-1135.86,0.00021917,2]
[315956006,1709303440843,-500.0,0.00021917,2]
[315956007,1709303440852,-500.0,0.00021917,2]
[315956008,1709303440862,-2199.41,0.00021917,2]
[315956009,1709303440872,-500.0,0.00021917,2]
[315956010,1709303440883,-500.0,0.00021917,2]
[315956011,1709303440892,-501.92821311,0.00021917,2]
[315956012,1709303440901,-678.22,0.00021917,2]
[315956013,1709303440910,-500.0,0.00021917,2]
[315956014,1709303440919,-1154.05,0.00021917,2]
[315956015,1709303440929,-537.39,0.00021917,2]
[315956016,1709303440939,-550.80656993,0.00021917,2]
[315956017,1709303440948,-500.0,0.00021917,2]
[315956018,1709303440957,-500.0,0.00021917,2]
[315956019,1709303440967,-500.0,0.00021917,2]
[315956020,1709303440978,-500.0,0.00021917,2]
[315956021,1709303440987,-615.07,0.00021917,2]
[315956022,1709303440997,-500.0,0.00021917,2]
[315956023,1709303441007,-846.99,0.00021917,2]
[315956024,1709303441016,-500.0,0.00021917,2]
[315956025,1709303441026,-500.0,0.00021917,2]
[315956026,1709303441036,-500.0,0.00021917,2]
[315956027,1709303441046,-500.0,0.00021917,2]
[315956028,1709303441055,-550.78,0.00021917,2]
[315956029,1709303441070,-500.0,0.00021917,2]
[315956030,1709303441079,-500.0,0.00021917,2]
[315956031,1709303441088,-500.0,0.00021917,2]
[315956032,1709303441097,-500.0,0.00021917,2]
[315956033,1709303441107,-500.0,0.00021917,2]
[315956034,1709303441116,-521.27,0.00021917,2]
[315956035,1709303441126,-500.0,0.00021917,2]
[315956036,1709303441136,-500.0,0.00021917,2]
[315956037,1709303441145,-260.67307241,0.00021917,2]
[315956038,1709303441155,-500.0,0.00021917,2]
[315956039,1709303441164,-500.0,0.00021917,2]
[315956040,1709303441173,-1164.4,0.00021917,2]
[315956041,1709303441183,-500.0,0.00021917,2]
[315956042,1709303441192,-500.0,0.00021917,2]
[315956043,1709303441201,-618.6,0.00021917,2]
[315956044,1709303441210,-500.0,0.00021917,2]
[315956045,1709303441220,-2118.22,0.00021917,2]
[315956046,1709303441230,-1390.0,0.00021917,2]
[315956047,1709303441239,-508.43711467,0.00021917,2]
[315956048,1709303441248,-500.0,0.00021917,2]
[315956049,1709303441258,-500.0,0.00021917,2]
[315956050,1709303441267,-898.01,0.00021917,2]
[315956051,1709303441276,-500.0,0.00021917,2]
[315956052,1709303441285,-500.0,0.00021917,2]
[315956053,1709303441295,-500.0,0.00021917,2]
[315956054,1709303441304,-677.85,0.00021917,2]
[315956055,1709303441316,-500.0,0.00021917,2]
[315956056,1709303441326,-500.0,0.00021917,2]
[315956057,1709303441335,-500.0,0.00021917,2]
[315956058,1709303441346,-500.0,0.00021917,2]
[315956059,1709303441355,-747.14,0.00021917,2]
[315956060,1709303441365,-500.0,0.00021917,2]
[315956061,1709303441375,-500.0,0.00021917,2]
[315956062,1709303441384,-500.0,0.00021917,2]
[315956063,1709303441393,-500.0,0.00021917,2]
[315956064,1709303441402,-500.0,0.00021917,2]
[315956065,1709303441412,-500.0,0.00021917,2]
[315956066,1709303441422,-500.0,0.00021917,2]
[315956067,1709303441431,-500.0,0.00021917,2]
[315956068,1709303441441,-500.0,0.00021917,2]
[315956069,1709303441450,-500.0,0.00021917,2]
[315956070,1709303441459,-500.0,0.00021917,2]
[315956071,1709303441469,-500.0,0.00021917,2]
[315956072,1709303441478,-1204.95,0.00021917,2]
[315956073,1709303441488,-500.0,0.00021917,2]
[315956074,1709303441497,-785.22,0.00021917,2]
[315956076,1709303441507,-1300.98,0.00021917,2]
[315956077,1709303441516,-500.0,0.00021917,2]
[315956078,1709303441526,-500.0,0.00021917,2]
[315956079,1709303441535,-500.0,0.00021917,2]
[315956080,1709303441544,-500.0,0.00021917,2]
[315956081,1709303441553,-4895.06,0.00021917,2]
[315956082,1709303441564,-500.0,0.00021917,2]
[315956083,1709303441573,-500.0,0.00021917,2]
[315956084,1709303441583,-500.0,0.00021917,2]
[315956085,1709303441592,-500.0,0.00021917,2]
[315956086,1709303441601,-687.45,0.00021917,2]
[315956087,1709303441612,-500.0,0.00021917,2]
[315956088,1709303441622,-500.0,0.00021917,2]
[315956089,1709303441631,-500.0,0.00021917,2]
[315956090,1709303441640,-500.0,0.00021917,2]
[315956091,1709303441652,-500.0,0.00021917,2]
[315956092,1709303441662,-561.12,0.00021917,2]
[315956093,1709303441671,-667.03,0.00021917,2]
[315956094,1709303441680,-500.0,0.00021917,2]
[315956095,1709303441690,-500.0,0.00021917,2]
[315956096,1709303441699,-500.0,0.00021917,2]
[315956097,1709303441708,-500.0,0.00021917,2]
[315956098,1709303441717,-500.0,0.00021917,2]
[315956099,1709303441726,-718.05,0.00021917,2]
[315956100,1709303441736,-500.0,0.00021917,2]
[315956101,1709303441746,-500.0,0.00021917,2]
[315956102,1709303441755,-500.0,0.00021917,2]
[315956103,1709303441764,-500.0,0.00021917,2]
[315956104,1709303441773,-500.0,0.00021917,2]
[315956105,1709303441782,-500.0,0.00021917,2]
[315956106,1709303441792,-500.0,0.00021917,2]
[315956107,1709303441801,-1697.99,0.00021917,2]
[315956108,1709303441812,-500.0,0.00021917,2]
[315956109,1709303441822,-425.0,0.00021917,2]
[315956110,1709303441831,-500.0,0.00021917,2]
[315956111,1709303441840,-500.0,0.00021917,2]
[315956112,1709303441849,-500.0,0.00021917,2]
[315956113,1709303441858,-500.0,0.00021917,2]
[315956114,1709303441867,-500.0,0.00021917,2]
[315956115,1709303441877,-704.64,0.00021917,2]
[315956116,1709303441886,-748.47,0.00021917,2]
[315956117,1709303441896,-500.0,0.00021917,2]
[315956118,1709303441906,-518.72,0.00021917,2]
[315956119,1709303441915,-500.0,0.00021917,2]
[315956120,1709303441925,-500.0,0.00021917,2]
[315956121,1709303441934,-500.0,0.00021917,2]
[315956122,1709303441944,-1032.16,0.00021917,2]
[315956123,1709303441954,-500.0,0.00021917,2]
[315956124,1709303441964,-500.0,0.00021917,2]
[315956125,1709303441973,-674.11,0.00021917,2]
[315956126,1709303441983,-921.17,0.00021917,2]
[315956127,1709303441993,-500.0,0.00021917,2]
[315956128,1709303442003,-500.0,0.00021917,2]
[315956129,1709303442013,-500.0,0.00021917,2]
[315956130,1709303442022,-500.0,0.00021917,2]
[315956131,1709303442032,-500.0,0.00021917,2]
[315956132,1709303442042,-500.0,0.00021917,2]
[315956133,1709303442051,-522.19,0.00021917,2]
[315956134,1709303442061,-3284.62,0.00021917,2]
[315956135,1709303442070,-500.0,0.00021917,2]
[315956136,1709303442080,-500.0,0.00021917,2]
[315956137,1709303442090,-7318.76,0.00021917,2]
[315956138,1709303442099,-500.0,0.00021917,2]
[315956139,1709303442109,-500.0,0.00021917,2]
[315956140,1709303442118,-701.45,0.00021917,2]
[315956141,1709303442127,-500.0,0.00021917,2]
[315956142,1709303442136,-703.15,0.00021917,2]
[315956143,1709303442145,-500.0,0.00021917,2]
[315956144,1709303442155,-500.0,0.00021917,2]
[315956145,1709303442164,-546.83,0.00021917,2]
[315956146,1709303442173,-500.0,0.00021917,2]
[315956147,1709303442182,-500.0,0.00021917,2]
[315956148,1709303442192,-1226.5,0.00021917,2]
[315956149,1709303442201,-500.0,0.00021917,2]
[315956150,1709303442211,-1091.03,0.00021917,2]
[315956151,1709303442222,-3068.97,0.00021917,2]
[315956152,1709303442231,-500.0,0.00021917,2]
[315956153,1709303442241,-500.0,0.00021917,2]
[315956154,1709303442250,-500.0,0.00021917,2]
[315956155,1709303442260,-1332.02,0.00021917,2]
[315956156,1709303442270,-500.0,0.00021917,2]
[315956157,1709303442280,-500.0,0.00021917,2]
[315956158,1709303442289,-982.67,0.00021917,2]
[315956159,1709303442298,-986.51,0.00021917,2]
[315956160,1709303442307,-500.0,0.00021917,2]
[315956161,1709303442319,-1136.91,0.00021917,2]
[315956162,1709303442328,-824.97,0.00021917,2]
[315956163,1709303442338,-500.0,0.00021917,2]
[315956164,1709303442347,-1340.08,0.00021917,2]
[315956165,1709303442356,-555.61,0.00021917,2]
[315956166,1709303442365,-500.0,0.00021917,2]
[315956167,1709303442374,-500.0,0.00021917,2]
[315956168,1709303442383,-500.0,0.00021917,2]
[315956169,1709303442393,-500.0,0.00021917,2]
[315956170,1709303442402,-500.0,0.00021917,2]
[315956171,1709303442412,-500.0,0.00021917,2]
[315956172,1709303442421,-511.5,0.00021917,2]
[315956173,1709303442430,-500.0,0.00021917,2]
[315956174,1709303442439,-500.0,0.00021917,2]
[315956175,1709303442448,-500.0,0.00021917,2]
[315956176,1709303442457,-584.63,0.00021917,2]
[315956177,1709303442466,-500.0,0.00021917,2]
[315956178,1709303442476,-500.0,0.00021917,2]
[315956179,1709303442485,-601.81476651,0.00021917,2]
[315956180,1709303442495,-500.0,0.00021917,2]
[315956181,1709303442504,-500.0,0.00021917,2]
[315956182,1709303442514,-500.0,0.00021917,2]
[315956183,1709303442524,-632.42,0.00021917,2]
[315956184,1709303442533,-6674.45,0.00021917,2]
[315956185,1709303442542,-694.81,0.00021917,2]
[315956186,1709303442551,-1092.18,0.00021917,2]
[315956187,1709303442562,-500.0,0.00021917,2]
[315956188,1709303442571,-500.0,0.00021917,2]
[315956189,1709303442581,-500.0,0.00021917,2]
[315956190,1709303442590,-807.54,0.00021917,2]
[315956191,1709303442599,-2580.63,0.00021917,2]
[315956192,1709303442614,-5420.47,0.00021917,2]
[315956193,1709303442624,-500.0,0.00021917,2]
[315956194,1709303442633,-500.0,0.00021917,2]
[315956195,1709303442642,-500.0,0.00021917,2]
[315956196,1709303442653,-500.0,0.00021917,2]
[315956197,1709303442663,-500.0,0.00021917,2]
[315956198,1709303442672,-739.77,0.00021917,2]
[315956199,1709303442682,-500.0,0.00021917,2]
[315956201,1709303442691,-1405.59,0.00021917,2]
[315956202,1709303442701,-500.0,0.00021917,2]
[315956203,1709303442710,-698.12,0.00021917,2]
[315956204,1709303442719,-577.0,0.00021917,2]
[315956205,1709303442729,-500.0,0.00021917,2]
[315956206,1709303442738,-500.0,0.00021917,2]
[315956207,1709303442748,-500.0,0.00021917,2]
[315956208,1709303442757,-500.0,0.00021917,2]
[315956209,1709303442767,-500.0,0.00021917,2]
[315956210,1709303442776,-500.0,0.00021917,2]
[315956211,1709303442785,-601.26,0.00021917,2]
[315956212,1709303442794,-500.0,0.00021917,2]
[315956214,1709303442804,-3900.52,0.00021917,2]
[315956216,1709303442815,-500.0,0.00021917,2]
[315956218,1709303442824,-500.0,0.00021917,2]
[315956220,1709303442833,-534.48,0.00021917,2]
[315956222,1709303442842,-500.0,0.00021917,2]
[315956225,1709303442852,-500.0,0.00021917,2]
[315956228,1709303442861,-500.0,0.00021917,2]
[315956232,1709303442870,-541.33,0.00021917,2]
[315956235,1709303442880,-500.0,0.00021917,2]
[315956238,1709303442889,-811.03,0.00021917,2]
[315956240,1709303442899,-500.0,0.00021917,2]
[315956243,1709303442908,-500.0,0.00021917,2]
[315956246,1709303442917,-516.54,0.00021917,2]
[315956248,1709303442927,-1008.96,0.00021917,2]
[315956250,1709303442936,-500.0,0.00021917,2]
[315956253,1709303442946,-500.0,0.00021917,2]
[315956255,1709303442955,-500.0,0.00021917,2]
[315956257,1709303442964,-500.0,0.00021917,2]
[315956259,1709303442973,-1978.01,0.00021917,2]
[315956261,1709303442982,-1143.08,0.00021917,2]
[315956263,1709303442991,-500.0,0.00021917,2]
[315956265,1709303443001,-500.62970986,0.00021917,2]
[315956267,1709303443011,-500.0,0.00021917,2]
[315956269,1709303443020,-4501.33,0.00021917,2]
[315956272,1709303443029,-500.0,0.00021917,2]
[315956273,1709303443039,-500.0,0.00021917,2]
[315956275,1709303443048,-500.0,0.00021917,2]
[315956277,1709303443058,-500.0,0.00021917,2]
[315956279,1709303443069,-500.0,0.00021917,2]
[315956281,1709303443078,-500.0,0.00021917,2]
[315956284,1709303443088,-500.0,0.00021917,2]
[315956286,1709303443097,-500.0,0.00021917,2]
[315956287,1709303443107,-616.38191228,0.00021917,2]
[315956289,1709303443116,-500.0,0.00021917,2]
[315956292,1709303443126,-500.0,0.00021917,2]
[315956294,1709303443136,-500.0,0.00021917,2]
[315956295,1709303443146,-1360.29,0.00021917,2]
[315956297,1709303443155,-844.13,0.00021917,2]
[315956299,1709303443165,-500.0,0.00021917,2]
[315956301,1709303443174,-3066.87,0.00021917,2]
[315956303,1709303443184,-500.0,0.00021917,2]
[315956305,1709303443194,-1262.22,0.00021917,2]
[315956307,1709303443204,-513.17,0.00021917,2]
[315956309,1709303443213,-500.0,0.00021917,2]
[315956310,1709303443223,-500.0,0.00021917,2]
[315956312,1709303443232,-500.0,0.00021917,2]
[315956314,1709303443242,-500.0,0.00021917,2]
[315956316,1709303443252,-500.0,0.00021917,2]
[315956318,1709303443261,-500.0,0.00021917,2]
[315956319,1709303443271,-500.0,0.00021917,2]
[315956320,1709303443281,-500.0,0.00021917,2]
[315956321,1709303443290,-500.0,0.00021917,2]
[315956322,1709303443301,-513.39081705,0.00021917,2]
[315956323,1709303443312,-500.0,0.00021917,2]
[315956324,1709303443322,-2019.99,0.00021917,2]
[315956325,1709303443332,-669.31,0.00021917,2]
[315956326,1709303443341,-645.08,0.00021917,2]
[315956327,1709303443351,-400.78,0.00021918,2]
[315956328,1709303443361,-1399.86,0.00021918,2]
[315956329,1709303443372,-14752.35,0.00021918,2]
[315956330,1709303443382,-152.23,0.00021918,2]
[315956331,1709303443391,-5912.13,0.00021918,2]
[315956332,1709303443402,-151.0,0.00021918,2]
[315956333,1709303443411,-200.0,0.00021918,2]
[315956334,1709303443421,-152.939633,0.00021918,7]
[315956335,1709303443431,-151.0,0.00021918,7]
[315956336,1709303443442,-151.0,0.00021918,7]
[315956337,1709303443454,-171.553624,0.00021918,7]
[315956338,1709303443465,-171.553624,0.00021918,7]
[315956339,1709303443475,-151.0,0.00021918,7]
[315956340,1709303443485,-501.0,0.00021921,2]
[315956341,1709303443496,-157.0,0.00021921,2]
[315956342,1709303443506,-177.0,0.00021921,2]
[315956343,1709303443516,-249.10988376,0.00021928,2]
[315956344,1709303443525,-20000.0,0.0002197,4]
[315956345,1709303443535,-151.0,0.0002197,7]
[315956346,1709303443545,-151.0,0.0002197,7]
[315956347,1709303443555,-151.0,0.0002197,7]
[315956348,1709303443566,-151.0,0.0002197,7]
[315956349,1709303443575,-1049.11,0.00021982,2]
[315956350,1709303443585,-200.0,0.00021987,2]
[315956351,1709303443595,-3000.0,0.0002199,2]
[315956352,1709303443608,-2000.0,0.00021991,2]
[315956353,1709303443618,-200.0,0.00021991,2]
[315956354,1709303443628,-1425.40181191,0.00022,2]
[315956355,1709303443638,-3709.45618597,0.00022,2]
[315956356,1709303443648,-9429.937,0.00022,7]
[315956357,1709303443660,-4979.16937653,0.00022,2]
[315956358,1709303443670,-1000.0,0.00022,2]
[315956359,1709303443680,-400.0,0.00022,3]
[315956360,1709303443690,-165.0,0.00022,2]
[315956361,1709303443699,-1000.0,0.00022,10]
[315956362,1709303443709,-11302.89437177,0.00022,2]
[315956363,1709303443719,-1000.0,0.00022,2]
[315956364,1709303443728,-1173.6108542,0.00022,2]
[315956365,1709303443738,-151.0,0.00022,7]
[315956366,1709303443748,-4000.0,0.00022,2]
[315956367,1709303443757,-409.83,0.00022033,2]
[315956368,1709303443767,-400.78,0.00022033,2]
[315956369,1709303443776,-4792.43611789,0.00022051,2]
[315956370,1709303443785,-181.18260782,0.00022051,2]
[315956371,1709303443795,-159.58496592,0.00022051,2]
[315956372,1709303443804,-172.60002999,0.00022051,2]
[315956373,1709303443815,-4120.99249163,0.00022051,2]
[315956374,1709303443825,-162.24218941,0.00022051,2]
[315956375,1709303443834,-151.0,0.00022051,7]
[315956376,1709303443845,-151.0,0.00022051,7]
[315956377,1709303443854,-171.553624,0.00022051,7]
[315956378,1709303443864,-171.553624,0.00022051,7]
[315956379,1709303443873,-155.51,0.00022055,2]
[315956380,1709303443883,-626.0,0.000221,2]
[315956381,1709303443892,-158.55,0.000221,2]
[315956382,1709303443902,-158.15,0.00022117,2]
[315956383,1709303443911,-1117.05199928,0.00022119,2]
[315956384,1709303443921,-151.0,0.00022128,3]
[315956385,1709303443930,-151.0,0.00022128,7]
[315956386,1709303443940,-151.0,0.00022128,7]
[315956387,1709303443950,-4120.99249158,0.00022128,2]
[315956388,1709303443959,-409.83,0.00022149,2]
[315956389,1709303443969,-400.78,0.00022149,2]
[315956390,1709303443979,-359.51738316,0.00022149,2]
[315956391,1709303443988,-155.0,0.00022149,2]
[315956392,1709303443997,-300.0,0.00022149,2]
[315956393,1709303444007,-163.30493524,0.00022149,2]
[315956394,1709303444016,-439.4287191,0.0002215,2]
[315956395,1709303444026,-151.0,0.0002215,7]
[315956396,1709303444035,-151.0,0.0002215,7]
[315956397,1709303444044,-1061.61757446,0.00022151,2]
[315956398,1709303444054,-50000.0,0.00022151,2]
[315956399,1709303444065,-50000.0,0.00022151,2]
[315956400,1709303444074,-18054.80041745,0.00022151,2]
[315956401,1709303444083,-4138.45887376,0.00022151,2]
[315956402,1709303444093,-10682.72088587,0.00022151,2]
[315956403,1709303444105,-151.0,0.00022151,7]
[315956404,1709303444115,-151.539711,0.00022151,7]
[315956405,1709303444126,-203.754194,0.00022151,7]
[315956406,1709303444136,-151.0,0.00022151,7]
[315956407,1709303444146,-151.0,0.00022151,7]
[315956408,1709303444156,-151.0,0.00022151,7]
[315956409,1709303444165,-151.0,0.00022151,7]
[315956410,1709303444177,-153.775195,0.00022151,7]
[315956411,1709303444186,-151.0,0.00022151,7]
[315956412,1709303444196,-151.568101,0.00022151,7]
[315956413,1709303444206,-171.145406,0.00022151,7]
[315956414,1709303444216,-154.4693,0.00022151,7]
[315956415,1709303444226,-15706.43263711,0.00022151,2]
[315956416,1709303444235,-151.0,0.00022151,7]
[315956417,1709303444245,-151.0,0.00022151,7]
[315956418,1709303444256,-151.0,0.00022151,7]
[315956419,1709303444265,-200.584,0.00022151,7]
[315956420,1709303444276,-162728.59790243,0.00022151,2]
[315956421,1709303444742,-890.89119731,0.00022151,2]
[315956422,1709303444798,-843.55385059,0.00022151,2]
[315956423,1709303444812,-993.545,0.00022151,2]
[315956424,1709303444940,-3235.57947384,0.00022151,2]
[315956425,1709303444954,-7892.15390794,0.00022151,2]
[315956426,1709303444969,-23415.67866789,0.00022151,2]
[315956427,1709303444981,-151.0,0.00022151,7]
[315956428,1709303444992,-151.0,0.00022151,7]
[315956429,1709303445004,-151.0,0.00022151,7]
[315956430,1709303445015,-53269.53554965,0.00022151,2]
[315956431,1709303445414,-4581.72960445,0.00022151,2]
[315956432,1709303445427,-956.32578198,0.00022151,2]
[315956433,1709303447286,-155.0,0.00017682,2]
[315956434,1709303447296,-206.0,0.00018389,2]
[315956435,1709303447306,-150.0,0.00021868,2]
[315956436,1709303447317,-500.0,0.00021917,2]
[315956437,1709303447327,-3138.69231131,0.00022,4]
[315956438,1709303447347,-1196.24069297,0.00022,4]
[315956439,1709303447374,-62799.99999999,0.00022,4]
[315956441,1709303447386,-21752.54131244,0.00022,4]
[315956450,1709303448469,-981.78226553,0.00022,4]
[315956451,1709303448511,-70872.82378098,0.00022,4]
[315956452,1709303448521,-141192.40906392,0.00022151,2]
[315956453,1709303448530,-151.0,0.00022151,7]
[315956454,1709303448539,-151.0,0.00022151,7]
[315956455,1709303448549,-151.0,0.00022151,7]
[315956456,1709303448558,-151.0,0.00022151,7]
[315956457,1709303448569,-151.0,0.00022151,7]
[315956458,1709303448578,-151.0,0.00022151,7]
[315956459,1709303448587,-258.357936,0.00022151,7]
[315956460,1709303448596,-151.0,0.00022151,2]
[315956461,1709303448607,-151.0,0.00022151,3]
[315956462,1709303448616,-208.534872,0.00022151,3]
[315956463,1709303448626,-17557.24729039,0.00022151,2]
[315956464,1709303448635,-151.0,0.00022151,7]
[315956465,1709303448644,-191.584602,0.00022151,7]
[315956466,1709303448655,-290.198344,0.00022151,7]
[315956467,1709303448664,-151.0,0.00022151,7]
[315956468,1709303448673,-151.0,0.00022151,7]
[315956469,1709303448682,-263.920128,0.00022151,7]
[315956470,1709303448692,-171.553624,0.00022151,7]
[315956471,1709303448701,-171.553624,0.00022151,7]
[315956472,1709303448711,-171.553624,0.00022151,7]
[315956473,1709303448720,-171.553624,0.00022151,7]
[315956474,1709303448730,-662.46,0.00022189,2]
[315956475,1709303448740,-500.0,0.00022191,2]
[315956476,1709303448750,-500.0,0.00022191,2]
[315956477,1709303448759,-500.0,0.00022191,2]
[315956478,1709303448768,-500.0,0.00022191,2]
[315956479,1709303448777,-500.0,0.00022191,2]
[315956480,1709303448786,-533.49,0.00022191,2]
[315956481,1709303448795,-500.0,0.00022191,2]
[315956482,1709303448804,-500.0,0.00022191,2]
[315956483,1709303448816,-500.0,0.00022191,2]
[315956484,1709303448825,-500.0,0.00022191,2]
[315956485,1709303448835,-500.0,0.00022191,2]
[315956486,1709303448844,-500.0,0.00022191,2]
[315956487,1709303448854,-500.0,0.00022191,2]